Workbook

Sheet Кешке шолу
B3: Кешке шолу
B6: ОҚИҒА | D6: ҚОНАҚТАР ТУРАЛЫ ЖИЫНТЫҚ МӘЛІМЕТ | H6: ="ПАЙДАЛАНЫЛМАҒАН ЖИНАЛЫС ҮШІН ЖАУАПТАР: "&OutstandingRSVPs -> ПАЙДАЛАНЫЛМАҒАН ЖИНАЛЫС ҮШІН ЖАУАПТАР: 2
B7: Әженің 75-ші туған күні | D7: ЖАУАП БЕРУ ҚАЖЕТ БӨЛІГІНЕ ШОЛУ | F7: ШЫҒЫН/ҚОНАҚ | H7: БЮДЖЕТ МӨЛШЕРІ
D8: Расталған қонақтар | E8: Жалпы расталған | F8: Тамақ | G8: Басқа | H8: Қорытынды
B9: КҮН | D9: Үлкендер | E9: =SUMIF(GuestTable[ҚАТЫСУШЫЛАР],"=Иә",GuestTable[ҮЛКЕНДЕР]) -> 26 | F9: =FoodTable[[#Totals],[ШЫҒЫН/ҮЛКЕН АДАМ]] -> Т12.69 | G9: =EssentialCostPerGuest -> Т18.70 | H9: =(AttendeeSummary[[#This Row],[Тамақ]]+AttendeeSummary[[#This Row],[Басқа]])*AdultTotal -> Т816.03
B10: 2011-06-14 | D10: Балалар | E10: =SUMIF(GuestTable[ҚАТЫСУШЫЛАР],"=Иә",GuestTable[БАЛАЛАР]) -> 20 | F10: =FoodTable[[#Totals],[ШЫҒЫН/БАЛА]] -> Т7.25 | G10: =EssentialCostPerGuest -> Т18.70 | H10: =(AttendeeSummary[[#This Row],[Тамақ]]+AttendeeSummary[[#This Row],[Басқа]])*ChildrenTotal -> Т518.97
D11: Қорытынды | E11: =SUBTOTAL(109,AttendeeSummary[Жалпы расталған]) -> 46 | F11: ="Орт. "&TEXT(SUBTOTAL(101,AttendeeSummary[Тамақ]),"Т# ##0,00") -> Орт. Т9,97 | G11: ="Орт. "&TEXT(SUBTOTAL(101,AttendeeSummary[Басқа]),"Т# ##0,00") -> Орт. Т18,70 | H11: =SUBTOTAL(109,AttendeeSummary[Қорытынды]) -> Т1,335.00
B12: УАҚЫТ
B13: 14:00 — 16:00
B15: ОРЫН | D15: БЮДЖЕТ ТУРАЛЫ ЖИЫНТЫҚ МӘЛІМЕТ
B16: Ким тәтенің үйі | D16: ЭЛЕМЕНТ | E16: САНЫ | F16: БЮДЖЕТ МӨЛШЕРІ | G16: ЖАЛПЫ ҚҰНЫ | H16: АЙЫРМАШЫЛЫҚ
D17: Тамақ және сусындар | E17: =COUNTA(FoodTable[ЖАЛПЫ ПОРЦИЯЛАР]) -> 18 | F17: Т500.00 | G17: =FoodTable[[#Totals],[ЖАЛПЫ ҚҰНЫ]] -> Т475.00 | H17: =BudgetOverview[[#This Row],[БЮДЖЕТ МӨЛШЕРІ]]-BudgetOverview[[#This Row],[ЖАЛПЫ ҚҰНЫ]] -> Т25.00
D18: =Table1Header -> Жабдық пен қорлар | E18: =COUNTA(Table1Budget[Жабдық пен қорлар]) -> 7 | F18: Т400.00 | G18: =Table1Budget[[#Totals],[Құны]] -> Т400.00 | H18: =BudgetOverview[[#This Row],[БЮДЖЕТ МӨЛШЕРІ]]-BudgetOverview[[#This Row],[ЖАЛПЫ ҚҰНЫ]] -> Т0.00
D19: =Table2Header -> 0 | E19: =COUNTA(Table2Budget[Декорациялар]) -> 4 | F19: Т150.00 | G19: =Table2Budget[[#Totals],[Құны]] -> Т175.00 | H19: =BudgetOverview[[#This Row],[БЮДЖЕТ МӨЛШЕРІ]]-BudgetOverview[[#This Row],[ЖАЛПЫ ҚҰНЫ]] -> -Т25.00
D20: =Table3Header -> 0 | E20: =COUNTA(Table3Budget[Басқа]) -> 4 | F20: Т300.00 | G20: =Table3Budget[[#Totals],[Құны]] -> Т285.00 | H20: =BudgetOverview[[#This Row],[БЮДЖЕТ МӨЛШЕРІ]]-BudgetOverview[[#This Row],[ЖАЛПЫ ҚҰНЫ]] -> Т15.00
D21: Қорытынды | E21: =SUBTOTAL(109,BudgetOverview[САНЫ]) -> 33 | F21: =SUBTOTAL(109,BudgetOverview[БЮДЖЕТ МӨЛШЕРІ]) -> Т1,350.00 | G21: =SUBTOTAL(109,BudgetOverview[ЖАЛПЫ ҚҰНЫ]) -> Т1,335.00 | H21: =SUBTOTAL(109,BudgetOverview[АЙЫРМАШЫЛЫҚ]) -> Т15.00

Sheet Қонақтар тізімі
B3: Қонақтар тізімі
B7: АТЫ | C7: МЕКЕНЖАЙ | D7: ҚАЛА | E7: ШТАТ | F7: ПОШТАЛЫҚ ИНДЕКС | G7: ТЕЛЕФОН | H7: ЭЛЕКТРОНДЫҚ ПОШТА | I7: ҚАТЫСУШЫЛАР | J7: БАЛАЛАР | K7: ҮЛКЕНДЕР | L7: ҚОРЫТЫНДЫ
B8: 1-жанұя | C8: 1-мекенжай | D8: 1-қала | E8: 1-штат | F8: 1-пошталық индекс | G8: 1-телефон | H8: 1-электрондық пошта | I8: Жоқ | J8: 2 | K8: 2 | L8: =SUM(GuestTable[[#This Row],[БАЛАЛАР]:[ҮЛКЕНДЕР]]) -> 4
B9: 2-жанұя | C9: 2-мекенжай | D9: 2-қала | E9: 2-штат | F9: 2-пошталық индекс | G9: 2-телефон | H9: 2-электрондық пошта | I9: Иә | J9: 1 | K9: 1 | L9: =SUM(GuestTable[[#This Row],[БАЛАЛАР]:[ҮЛКЕНДЕР]]) -> 2
B10: 3-жанұя | C10: 3-мекенжай | D10: 3-қала | E10: 3-штат | F10: 3-пошталық индекс | G10: 3-телефон | H10: 3-электрондық пошта | I10: Иә | J10: 3 | K10: 3 | L10: =SUM(GuestTable[[#This Row],[БАЛАЛАР]:[ҮЛКЕНДЕР]]) -> 6
B11: 4-жанұя | C11: 4-мекенжай | D11: 4-қала | E11: 4-штат | F11: 4-пошталық индекс | G11: 4-телефон | H11: 4-электрондық пошта | K11: 2 | L11: =SUM(GuestTable[[#This Row],[БАЛАЛАР]:[ҮЛКЕНДЕР]]) -> 2
B12: 5-жанұя | C12: 5-мекенжай | D12: 5-қала | E12: 5-штат | F12: 5-пошталық индекс | G12: 5-телефон | H12: 5-электрондық пошта | I12: Иә | J12: 4 | K12: 3 | L12: =SUM(GuestTable[[#This Row],[БАЛАЛАР]:[ҮЛКЕНДЕР]]) -> 7
B13: 6-жанұя | C13: 6-мекенжай | D13: 6-қала | E13: 6-штат | F13: 6-пошталық индекс | G13: 6-телефон | H13: 6-электрондық пошта | I13: Иә | J13: 2 | K13: 2 | L13: =SUM(GuestTable[[#This Row],[БАЛАЛАР]:[ҮЛКЕНДЕР]]) -> 4
B14: 7-жанұя | C14: 7-мекенжай | D14: 7-қала | E14: 7-штат | F14: 7-пошталық индекс | G14: 7-телефон | H14: 7-электрондық пошта | I14: Иә | J14: 1 | K14: 4 | L14: =SUM(GuestTable[[#This Row],[БАЛАЛАР]:[ҮЛКЕНДЕР]]) -> 5
B15: 8-жанұя | C15: 8-мекенжай | D15: 8-қала | E15: 8-штат | F15: 8-пошталық индекс | G15: 8-телефон | H15: 8-электрондық пошта | I15: Жоқ | J15: 5 | K15: 3 | L15: =SUM(GuestTable[[#This Row],[БАЛАЛАР]:[ҮЛКЕНДЕР]]) -> 8
B16: 9-жанұя | C16: 9-мекенжай | D16: 9-қала | E16: 9-штат | F16: 9-пошталық индекс | G16: 9-телефон | H16: 9-электрондық пошта | I16: Иә | J16: 3 | K16: 2 | L16: =SUM(GuestTable[[#This Row],[БАЛАЛАР]:[ҮЛКЕНДЕР]]) -> 5
B17: 10-жанұя | C17: 10-мекенжай | D17: 10-қала | E17: 10-штат | F17: 10-пошталық индекс | G17: 10-телефон | H17: 10-электрондық пошта | I17: Иә | K17: 4 | L17: =SUM(GuestTable[[#This Row],[БАЛАЛАР]:[ҮЛКЕНДЕР]]) -> 4
B18: 11-жанұя | C18: 11-мекенжай | D18: 11-қала | E18: 11-штат | F18: 11-пошталық индекс | G18: 11-телефон | H18: 11-электрондық пошта | I18: Иә | J18: 3 | K18: 5 | L18: =SUM(GuestTable[[#This Row],[БАЛАЛАР]:[ҮЛКЕНДЕР]]) -> 8
B19: 12-жанұя | C19: 12-мекенжай | D19: 12-қала | E19: 12-штат | F19: 12-пошталық индекс | G19: 12-телефон | H19: 12-электрондық пошта | I19: Жоқ | J19: 2 | K19: 3 | L19: =SUM(GuestTable[[#This Row],[БАЛАЛАР]:[ҮЛКЕНДЕР]]) -> 5
B20: 13-жанұя | C20: 13-мекенжай | D20: 13-қала | E20: 13-штат | F20: 13-пошталық индекс | G20: 13-телефон | H20: 13-электрондық пошта | I20: Иә | J20: 3 | K20: 2 | L20: =SUM(GuestTable[[#This Row],[БАЛАЛАР]:[ҮЛКЕНДЕР]]) -> 5
B21: 14-жанұя | C21: 14-мекенжай | D21: 14-қала | E21: 14-штат | F21: 14-пошталық индекс | G21: 14-телефон | H21: 14-электрондық пошта | I21: Жоқ | K21: 1 | L21: =SUM(GuestTable[[#This Row],[БАЛАЛАР]:[ҮЛКЕНДЕР]]) -> 1
B22: 15-жанұя | C22: 15-мекенжай | D22: 15-қала | E22: 15-штат | F22: 15-пошталық индекс | G22: 15-телефон | H22: 15-электрондық пошта | K22: 2 | L22: =SUM(GuestTable[[#This Row],[БАЛАЛАР]:[ҮЛКЕНДЕР]]) -> 2

Sheet Тамақ және сусындар
B3: Тамақ және сусындар
B5: Жалпы қатысудың негізінде жалпы бөліктерді және әр порцияның құнын автоматты түрде есептеу үшін құн мен болжалды порцияларды енгізіңіз
B6: ТАМАҚ НЕМЕСЕ СУСЫН ЭЛЕМЕНТІ | C6: ЖАЛПЫ ҚҰНЫ | D6: ПОРЦИЯ/БАЛА | E6: ПОРЦИЯ/ҮЛКЕН АДАМ | F6: ЖАЛПЫ ПОРЦИЯЛАР | G6: ШЫҒЫН/ПОРЦИЯ | H6: ШЫҒЫН/БАЛА | I6: ШЫҒЫН/ҮЛКЕН АДАМ | J6: ЕСКЕРІМДЕР
B7: Сода | C7: Т15.00 | D7: 0.5 | E7: 2 | F7: =(FoodTable[[#This Row],[ПОРЦИЯ/БАЛА]]*ChildrenTotal)+(FoodTable[[#This Row],[ПОРЦИЯ/ҮЛКЕН АДАМ]]*AdultTotal) -> 62 | G7: =IFERROR(FoodTable[[#This Row],[ЖАЛПЫ ҚҰНЫ]]/FoodTable[[#This Row],[ЖАЛПЫ ПОРЦИЯЛАР]],"") -> Т0.24 | H7: =IFERROR(FoodTable[[#This Row],[ШЫҒЫН/ПОРЦИЯ]]*FoodTable[[#This Row],[ПОРЦИЯ/БАЛА]],"") -> Т0.12 | I7: =IFERROR(FoodTable[[#This Row],[ШЫҒЫН/ПОРЦИЯ]]*FoodTable[[#This Row],[ПОРЦИЯ/ҮЛКЕН АДАМ]],"") -> Т0.48 | J7: 2 литр бөтелке
B8: Шырын қораптары | C8: Т15.00 | D8: 2 | E8: 0 | F8: =(FoodTable[[#This Row],[ПОРЦИЯ/БАЛА]]*ChildrenTotal)+(FoodTable[[#This Row],[ПОРЦИЯ/ҮЛКЕН АДАМ]]*AdultTotal) -> 40 | G8: =IFERROR(FoodTable[[#This Row],[ЖАЛПЫ ҚҰНЫ]]/FoodTable[[#This Row],[ЖАЛПЫ ПОРЦИЯЛАР]],"") -> Т0.38 | H8: =IFERROR(FoodTable[[#This Row],[ШЫҒЫН/ПОРЦИЯ]]*FoodTable[[#This Row],[ПОРЦИЯ/БАЛА]],"") -> Т0.75 | I8: =IFERROR(FoodTable[[#This Row],[ШЫҒЫН/ПОРЦИЯ]]*FoodTable[[#This Row],[ПОРЦИЯ/ҮЛКЕН АДАМ]],"") -> Т0.00 | J8: Алма және ақ жүзім
B9: Шарап | C9: Т50.00 | D9: 0 | E9: 2 | F9: =(FoodTable[[#This Row],[ПОРЦИЯ/БАЛА]]*ChildrenTotal)+(FoodTable[[#This Row],[ПОРЦИЯ/ҮЛКЕН АДАМ]]*AdultTotal) -> 52 | G9: =IFERROR(FoodTable[[#This Row],[ЖАЛПЫ ҚҰНЫ]]/FoodTable[[#This Row],[ЖАЛПЫ ПОРЦИЯЛАР]],"") -> Т0.96 | H9: =IFERROR(FoodTable[[#This Row],[ШЫҒЫН/ПОРЦИЯ]]*FoodTable[[#This Row],[ПОРЦИЯ/БАЛА]],"") -> Т0.00 | I9: =IFERROR(FoodTable[[#This Row],[ШЫҒЫН/ПОРЦИЯ]]*FoodTable[[#This Row],[ПОРЦИЯ/ҮЛКЕН АДАМ]],"") -> Т1.92
B10: Бәліш | C10: Т75.00 | D10: 1 | E10: 1 | F10: =(FoodTable[[#This Row],[ПОРЦИЯ/БАЛА]]*ChildrenTotal)+(FoodTable[[#This Row],[ПОРЦИЯ/ҮЛКЕН АДАМ]]*AdultTotal) -> 46 | G10: =IFERROR(FoodTable[[#This Row],[ЖАЛПЫ ҚҰНЫ]]/FoodTable[[#This Row],[ЖАЛПЫ ПОРЦИЯЛАР]],"") -> Т1.63 | H10: =IFERROR(FoodTable[[#This Row],[ШЫҒЫН/ПОРЦИЯ]]*FoodTable[[#This Row],[ПОРЦИЯ/БАЛА]],"") -> Т1.63 | I10: =IFERROR(FoodTable[[#This Row],[ШЫҒЫН/ПОРЦИЯ]]*FoodTable[[#This Row],[ПОРЦИЯ/ҮЛКЕН АДАМ]],"") -> Т1.63 | J10: Жергілікті наубайханадан тапсырыс беру
B11: Балмұздақ | C11: Т20.00 | D11: 1 | E11: 1.5 | F11: =(FoodTable[[#This Row],[ПОРЦИЯ/БАЛА]]*ChildrenTotal)+(FoodTable[[#This Row],[ПОРЦИЯ/ҮЛКЕН АДАМ]]*AdultTotal) -> 59 | G11: =IFERROR(FoodTable[[#This Row],[ЖАЛПЫ ҚҰНЫ]]/FoodTable[[#This Row],[ЖАЛПЫ ПОРЦИЯЛАР]],"") -> Т0.34 | H11: =IFERROR(FoodTable[[#This Row],[ШЫҒЫН/ПОРЦИЯ]]*FoodTable[[#This Row],[ПОРЦИЯ/БАЛА]],"") -> Т0.34 | I11: =IFERROR(FoodTable[[#This Row],[ШЫҒЫН/ПОРЦИЯ]]*FoodTable[[#This Row],[ПОРЦИЯ/ҮЛКЕН АДАМ]],"") -> Т0.51
B12: Пудинг шыныаяқтары | C12: Т15.00 | D12: 1 | E12: 0 | F12: =(FoodTable[[#This Row],[ПОРЦИЯ/БАЛА]]*ChildrenTotal)+(FoodTable[[#This Row],[ПОРЦИЯ/ҮЛКЕН АДАМ]]*AdultTotal) -> 20 | G12: =IFERROR(FoodTable[[#This Row],[ЖАЛПЫ ҚҰНЫ]]/FoodTable[[#This Row],[ЖАЛПЫ ПОРЦИЯЛАР]],"") -> Т0.75 | H12: =IFERROR(FoodTable[[#This Row],[ШЫҒЫН/ПОРЦИЯ]]*FoodTable[[#This Row],[ПОРЦИЯ/БАЛА]],"") -> Т0.75 | I12: =IFERROR(FoodTable[[#This Row],[ШЫҒЫН/ПОРЦИЯ]]*FoodTable[[#This Row],[ПОРЦИЯ/ҮЛКЕН АДАМ]],"") -> Т0.00 | J12: Жиынтық шыныаяқтарды сатып алу: ваниль және шоколад
B13: Турама салынған саңырауқұлақтар | C13: Т32.00 | D13: 1 | E13: 2 | F13: =(FoodTable[[#This Row],[ПОРЦИЯ/БАЛА]]*ChildrenTotal)+(FoodTable[[#This Row],[ПОРЦИЯ/ҮЛКЕН АДАМ]]*AdultTotal) -> 72 | G13: =IFERROR(FoodTable[[#This Row],[ЖАЛПЫ ҚҰНЫ]]/FoodTable[[#This Row],[ЖАЛПЫ ПОРЦИЯЛАР]],"") -> Т0.44 | H13: =IFERROR(FoodTable[[#This Row],[ШЫҒЫН/ПОРЦИЯ]]*FoodTable[[#This Row],[ПОРЦИЯ/БАЛА]],"") -> Т0.44 | I13: =IFERROR(FoodTable[[#This Row],[ШЫҒЫН/ПОРЦИЯ]]*FoodTable[[#This Row],[ПОРЦИЯ/ҮЛКЕН АДАМ]],"") -> Т0.89 | J13: Қаймақ пен сосиска салынған шампиньондар
B14: Брускетта | C14: Т22.00 | D14: 0 | E14: 3 | F14: =(FoodTable[[#This Row],[ПОРЦИЯ/БАЛА]]*ChildrenTotal)+(FoodTable[[#This Row],[ПОРЦИЯ/ҮЛКЕН АДАМ]]*AdultTotal) -> 78 | G14: =IFERROR(FoodTable[[#This Row],[ЖАЛПЫ ҚҰНЫ]]/FoodTable[[#This Row],[ЖАЛПЫ ПОРЦИЯЛАР]],"") -> Т0.28 | H14: =IFERROR(FoodTable[[#This Row],[ШЫҒЫН/ПОРЦИЯ]]*FoodTable[[#This Row],[ПОРЦИЯ/БАЛА]],"") -> Т0.00 | I14: =IFERROR(FoodTable[[#This Row],[ШЫҒЫН/ПОРЦИЯ]]*FoodTable[[#This Row],[ПОРЦИЯ/ҮЛКЕН АДАМ]],"") -> Т0.85 | J14: Қызанақ және райхан
B15: Сүрленген албырт | C15: Т50.00 | D15: 1 | E15: 2 | F15: =(FoodTable[[#This Row],[ПОРЦИЯ/БАЛА]]*ChildrenTotal)+(FoodTable[[#This Row],[ПОРЦИЯ/ҮЛКЕН АДАМ]]*AdultTotal) -> 72 | G15: =IFERROR(FoodTable[[#This Row],[ЖАЛПЫ ҚҰНЫ]]/FoodTable[[#This Row],[ЖАЛПЫ ПОРЦИЯЛАР]],"") -> Т0.69 | H15: =IFERROR(FoodTable[[#This Row],[ШЫҒЫН/ПОРЦИЯ]]*FoodTable[[#This Row],[ПОРЦИЯ/БАЛА]],"") -> Т0.69 | I15: =IFERROR(FoodTable[[#This Row],[ШЫҒЫН/ПОРЦИЯ]]*FoodTable[[#This Row],[ПОРЦИЯ/ҮЛКЕН АДАМ]],"") -> Т1.39
B16: Шағын собалақтар | C16: Т20.00 | D16: 1 | E16: 2 | F16: =(FoodTable[[#This Row],[ПОРЦИЯ/БАЛА]]*ChildrenTotal)+(FoodTable[[#This Row],[ПОРЦИЯ/ҮЛКЕН АДАМ]]*AdultTotal) -> 72 | G16: =IFERROR(FoodTable[[#This Row],[ЖАЛПЫ ҚҰНЫ]]/FoodTable[[#This Row],[ЖАЛПЫ ПОРЦИЯЛАР]],"") -> Т0.28 | H16: =IFERROR(FoodTable[[#This Row],[ШЫҒЫН/ПОРЦИЯ]]*FoodTable[[#This Row],[ПОРЦИЯ/БАЛА]],"") -> Т0.28 | I16: =IFERROR(FoodTable[[#This Row],[ШЫҒЫН/ПОРЦИЯ]]*FoodTable[[#This Row],[ПОРЦИЯ/ҮЛКЕН АДАМ]],"") -> Т0.56 | J16: 4 сөмке — аралас
B17: Қаймақтан жасалған ірімшік | C17: Т10.00 | D17: 1 | E17: 2 | F17: =(FoodTable[[#This Row],[ПОРЦИЯ/БАЛА]]*ChildrenTotal)+(FoodTable[[#This Row],[ПОРЦИЯ/ҮЛКЕН АДАМ]]*AdultTotal) -> 72 | G17: =IFERROR(FoodTable[[#This Row],[ЖАЛПЫ ҚҰНЫ]]/FoodTable[[#This Row],[ЖАЛПЫ ПОРЦИЯЛАР]],"") -> Т0.14 | H17: =IFERROR(FoodTable[[#This Row],[ШЫҒЫН/ПОРЦИЯ]]*FoodTable[[#This Row],[ПОРЦИЯ/БАЛА]],"") -> Т0.14 | I17: =IFERROR(FoodTable[[#This Row],[ШЫҒЫН/ПОРЦИЯ]]*FoodTable[[#This Row],[ПОРЦИЯ/ҮЛКЕН АДАМ]],"") -> Т0.28 | J17: 2 үлкен кеспек
B18: Каперс | C18: Т12.00 | D18: 1 | E18: 2 | F18: =(FoodTable[[#This Row],[ПОРЦИЯ/БАЛА]]*ChildrenTotal)+(FoodTable[[#This Row],[ПОРЦИЯ/ҮЛКЕН АДАМ]]*AdultTotal) -> 72 | G18: =IFERROR(FoodTable[[#This Row],[ЖАЛПЫ ҚҰНЫ]]/FoodTable[[#This Row],[ЖАЛПЫ ПОРЦИЯЛАР]],"") -> Т0.17 | H18: =IFERROR(FoodTable[[#This Row],[ШЫҒЫН/ПОРЦИЯ]]*FoodTable[[#This Row],[ПОРЦИЯ/БАЛА]],"") -> Т0.17 | I18: =IFERROR(FoodTable[[#This Row],[ШЫҒЫН/ПОРЦИЯ]]*FoodTable[[#This Row],[ПОРЦИЯ/ҮЛКЕН АДАМ]],"") -> Т0.33 | J18: 3 банка
B19: Тауық қанаттары | C19: Т45.00 | D19: 2 | E19: 4 | F19: =(FoodTable[[#This Row],[ПОРЦИЯ/БАЛА]]*ChildrenTotal)+(FoodTable[[#This Row],[ПОРЦИЯ/ҮЛКЕН АДАМ]]*AdultTotal) -> 144 | G19: =IFERROR(FoodTable[[#This Row],[ЖАЛПЫ ҚҰНЫ]]/FoodTable[[#This Row],[ЖАЛПЫ ПОРЦИЯЛАР]],"") -> Т0.31 | H19: =IFERROR(FoodTable[[#This Row],[ШЫҒЫН/ПОРЦИЯ]]*FoodTable[[#This Row],[ПОРЦИЯ/БАЛА]],"") -> Т0.63 | I19: =IFERROR(FoodTable[[#This Row],[ШЫҒЫН/ПОРЦИЯ]]*FoodTable[[#This Row],[ПОРЦИЯ/ҮЛКЕН АДАМ]],"") -> Т1.25 | J19: Жергілікті дүкеннен сатып алу
B20: Хумус | C20: Т10.00 | D20: 4 | E20: 6 | F20: =(FoodTable[[#This Row],[ПОРЦИЯ/БАЛА]]*ChildrenTotal)+(FoodTable[[#This Row],[ПОРЦИЯ/ҮЛКЕН АДАМ]]*AdultTotal) -> 236 | G20: =IFERROR(FoodTable[[#This Row],[ЖАЛПЫ ҚҰНЫ]]/FoodTable[[#This Row],[ЖАЛПЫ ПОРЦИЯЛАР]],"") -> Т0.04 | H20: =IFERROR(FoodTable[[#This Row],[ШЫҒЫН/ПОРЦИЯ]]*FoodTable[[#This Row],[ПОРЦИЯ/БАЛА]],"") -> Т0.17 | I20: =IFERROR(FoodTable[[#This Row],[ШЫҒЫН/ПОРЦИЯ]]*FoodTable[[#This Row],[ПОРЦИЯ/ҮЛКЕН АДАМ]],"") -> Т0.25 | J20: Кештен бұрынғы кеште жасау
B21: Пармезан пита қуырылған картобы | C21: Т14.00 | D21: 4 | E21: 6 | F21: =(FoodTable[[#This Row],[ПОРЦИЯ/БАЛА]]*ChildrenTotal)+(FoodTable[[#This Row],[ПОРЦИЯ/ҮЛКЕН АДАМ]]*AdultTotal) -> 236 | G21: =IFERROR(FoodTable[[#This Row],[ЖАЛПЫ ҚҰНЫ]]/FoodTable[[#This Row],[ЖАЛПЫ ПОРЦИЯЛАР]],"") -> Т0.06 | H21: =IFERROR(FoodTable[[#This Row],[ШЫҒЫН/ПОРЦИЯ]]*FoodTable[[#This Row],[ПОРЦИЯ/БАЛА]],"") -> Т0.24 | I21: =IFERROR(FoodTable[[#This Row],[ШЫҒЫН/ПОРЦИЯ]]*FoodTable[[#This Row],[ПОРЦИЯ/ҮЛКЕН АДАМ]],"") -> Т0.36 | J21: Кештен бұрынғы кеште жасау
B22: Аралас көкөністер | C22: Т30.00 | D22: 4 | E22: 10 | F22: =(FoodTable[[#This Row],[ПОРЦИЯ/БАЛА]]*ChildrenTotal)+(FoodTable[[#This Row],[ПОРЦИЯ/ҮЛКЕН АДАМ]]*AdultTotal) -> 340 | G22: =IFERROR(FoodTable[[#This Row],[ЖАЛПЫ ҚҰНЫ]]/FoodTable[[#This Row],[ЖАЛПЫ ПОРЦИЯЛАР]],"") -> Т0.09 | H22: =IFERROR(FoodTable[[#This Row],[ШЫҒЫН/ПОРЦИЯ]]*FoodTable[[#This Row],[ПОРЦИЯ/БАЛА]],"") -> Т0.35 | I22: =IFERROR(FoodTable[[#This Row],[ШЫҒЫН/ПОРЦИЯ]]*FoodTable[[#This Row],[ПОРЦИЯ/ҮЛКЕН АДАМ]],"") -> Т0.88 | J22: Сәбіз таяқшалары, балдыркөк, брокколи, түсті орамжапырақ, қызыл және жасыл бұрыш
B23: Ірімшік | C23: Т15.00 | D23: 5 | E23: 10 | F23: =(FoodTable[[#This Row],[ПОРЦИЯ/БАЛА]]*ChildrenTotal)+(FoodTable[[#This Row],[ПОРЦИЯ/ҮЛКЕН АДАМ]]*AdultTotal) -> 360 | G23: =IFERROR(FoodTable[[#This Row],[ЖАЛПЫ ҚҰНЫ]]/FoodTable[[#This Row],[ЖАЛПЫ ПОРЦИЯЛАР]],"") -> Т0.04 | H23: =IFERROR(FoodTable[[#This Row],[ШЫҒЫН/ПОРЦИЯ]]*FoodTable[[#This Row],[ПОРЦИЯ/БАЛА]],"") -> Т0.21 | I23: =IFERROR(FoodTable[[#This Row],[ШЫҒЫН/ПОРЦИЯ]]*FoodTable[[#This Row],[ПОРЦИЯ/ҮЛКЕН АДАМ]],"") -> Т0.42 | J23: Аралас: қаймақтан жасалған ірімшік, жаңғақ бар ащы ірімшік
B24: Крекер | C24: Т25.00 | D24: 5 | E24: 10 | F24: =(FoodTable[[#This Row],[ПОРЦИЯ/БАЛА]]*ChildrenTotal)+(FoodTable[[#This Row],[ПОРЦИЯ/ҮЛКЕН АДАМ]]*AdultTotal) -> 360 | G24: =IFERROR(FoodTable[[#This Row],[ЖАЛПЫ ҚҰНЫ]]/FoodTable[[#This Row],[ЖАЛПЫ ПОРЦИЯЛАР]],"") -> Т0.07 | H24: =IFERROR(FoodTable[[#This Row],[ШЫҒЫН/ПОРЦИЯ]]*FoodTable[[#This Row],[ПОРЦИЯ/БАЛА]],"") -> Т0.35 | I24: =IFERROR(FoodTable[[#This Row],[ШЫҒЫН/ПОРЦИЯ]]*FoodTable[[#This Row],[ПОРЦИЯ/ҮЛКЕН АДАМ]],"") -> Т0.69 | J24: Аралас
B25: Қорытынды | C25: =SUBTOTAL(109,FoodTable[ЖАЛПЫ ҚҰНЫ]) -> Т475.00 | D25: =SUBTOTAL(109,FoodTable[ПОРЦИЯ/БАЛА]) -> 34.5 | E25: =SUBTOTAL(109,FoodTable[ПОРЦИЯ/ҮЛКЕН АДАМ]) -> 65.5 | F25: =SUBTOTAL(109,FoodTable[ЖАЛПЫ ПОРЦИЯЛАР]) -> 2393 | G25: =SUBTOTAL(109,FoodTable[ШЫҒЫН/ПОРЦИЯ]) -> Т6.92 | H25: =SUBTOTAL(109,FoodTable[ШЫҒЫН/БАЛА]) -> Т7.25 | I25: =SUBTOTAL(109,FoodTable[ШЫҒЫН/ҮЛКЕН АДАМ]) -> Т12.69

Sheet Басқа негіздер
B3: Басқа негіздер
B6: Жабдық пен қорлар | C6: Құны | D6: Сатып алынған | E6: Ескерімдер
B7: Бөлмені/заланы жалдау | C7: Т250.00 | D7: Иә
B8: Төсек-орын | C8: Т30.00 | D8: Иә | E8: Жалдау
B9: Үстелдер мен орындықтар | C9: Т0.00 | E9: Залды жалдауға кіреді
B10: Сусын майлықтары | C10: Т25.00
B11: Түскі ас майлықтары | C11: Т20.00 | E11: Жалдау
B12: Үстелге қызмет көрсету | C12: Т50.00 | E12: Жалдау
B13: Шыныдан жасалған бұйымдар | C13: Т25.00 | E13: Жалдау
B14: Қорытынды | C14: =SUBTOTAL(109,Table1Budget[Құны]) -> Т400.00
B17: Декорациялар | C17: Құны | D17: Сатып алынған | E17: Ескерімдер
B18: Шариктер | C18: Т25.00
B19: Гелий багы | C19: Т50.00 | E19: Жалдау
B20: Негізгі безендіру | C20: Т100.00 | D20: Иә | E20: Жалпы 10
B21: Шыны вазалар | C21: Т0.00 | E21: Сэндиден ала тұру
B22: Қорытынды | C22: =SUBTOTAL(109,Table2Budget[Құны]) -> Т175.00
B25: Басқа | C25: Құны | D25: Сатып алынған | E25: Ескерімдер
B26: Шақырулар | C26: Т50.00 | D26: Иә
B27: Пошта төлемдері | C27: Т60.00 | D27: Иә
B28: Фотограф | C28: Т125.00 | E28: 2 сағат (14:00 — 16:00)
B29: Кеш кәдесыйлары | C29: Т50.00
B30: Қорытынды | C30: =SUBTOTAL(109,Table3Budget[Құны]) -> Т285.00

Sheet Орындардың орналасуының торы
A1: Орындардың орналасуы
AH35: *1 шаршы= шамамен 1 шаршу фут
A36: Ескерімдер | T36: =" Расталған қонақтардың жалпы саны: "&ConfirmedGuests -> Расталған қонақтардың жалпы саны: 46
T37: Келесі үстел құрылымдарының кез келгенін пайдалана аласыз:
U38: =ROUNDUP(ConfirmedGuests/6,0)&" дөңгелек 54-дюймді кестелер (6 орындық)" -> 8 дөңгелек 54-дюймді кестелер (6 орындық)
U39: =ROUNDUP(ConfirmedGuests/8,0) &" дөңгелек 60-дюймді кестелер (8 орындық)" -> 6 дөңгелек 60-дюймді кестелер (8 орындық)
U40: =ROUNDUP(ConfirmedGuests/10,0)&"дөңгелек 72-дюймді кестелер (10 орындық)" -> 5дөңгелек 72-дюймді кестелер (10 орындық)
U41: =ROUNDUP(ConfirmedGuests/6,0)& " шаршы 30-дюйм x72-дюймді кестелер (6 орындық)" -> 8 шаршы 30-дюйм x72-дюймді кестелер (6 орындық)
U42: =ROUNDUP(ConfirmedGuests/8,0)&" шаршы 30-дюйм x96-дюймді кестелер (8 орындық)" -> 6 шаршы 30-дюйм x96-дюймді кестелер (8 орындық)
T43: (Үстелдер арасындағы дұрыс аралық: 42 дюйм)
